bitfinex-derivatives/quotes_ETHF0:USTF0_20230104
["timestamp","ask_amount","ask_price","bid_price","bid_amount"]
[1672869784932,3.097,1253.0,1252.8,2.98998605]
[1672869785232,3.0073,1252.9,1252.8,2.98998605]
[1672869786605,3.097,1253.0,1252.8,2.98998605]
[1672869786820,3.0073,1252.9,1252.8,2.98998605]
[1672869787554,3.097,1253.0,1252.8,2.98998605]
[1672869788176,3.0073,1252.9,1252.8,2.98998605]
[1672869788916,3.097,1253.0,1252.8,2.98998605]
[1672869789125,3.0073,1252.9,1252.8,2.98998605]
[1672869790073,3.097,1253.0,1252.8,2.98998605]
[1672869790274,3.0073,1252.9,1252.8,2.98998605]
[1672869792172,3.097,1253.0,1252.8,2.98998605]
[1672869792378,3.0073,1252.9,1252.8,2.98998605]
[1672869793328,3.0073,1252.9,1252.8,1.19636579]
[1672869795216,3.0073,1252.9,1252.8,2.79336579]
[1672869803949,1.5,1253.0,1252.8,2.79336579]
[1672869804255,3.0073,1252.9,1252.8,2.79336579]
[1672869805723,1.5,1253.0,1252.8,2.79336579]
[1672869805935,3.0073,1252.9,1252.8,2.79336579]
[1672869807086,1.5,1253.0,1252.8,2.79336579]
[1672869807406,3.0073,1252.9,1252.8,2.79336579]
[1672869810877,1.5,1253.0,1252.8,2.79336579]
[1672869811091,3.0073,1252.9,1252.8,2.79336579]
[1672869812562,6.28872891,1253.0,1252.8,1.597]
[1672869812770,3.0073,1252.9,1252.8,1.597]
[1672869813188,3.0073,1252.9,1252.8,2.79336579]
[1672869814661,6.28872891,1253.0,1252.8,2.79336579]
[1672869814873,3.0073,1252.9,1252.8,2.79336579]
[1672869815399,6.28872891,1253.0,1252.8,2.79336579]
[1672869815610,3.0073,1252.9,1252.8,2.79336579]
[1672869817077,1.5,1253.0,1252.8,2.79336579]
[1672869817283,3.0073,1252.9,1252.8,2.79336579]
[1672869819809,1.5,1253.0,1252.8,2.79336579]
[1672869820545,3.0073,1252.9,1252.8,2.79336579]
[1672869821385,1.5,1253.0,1252.8,2.79336579]
[1672869821911,3.0073,1252.9,1252.8,2.79336579]
[1672869823063,1.5,1253.0,1252.8,2.79336579]
[1672869823269,3.0073,1252.9,1252.8,2.79336579]
[1672869827257,3.0073,1252.9,1252.8,1.597]
[1672869830638,3.0073,1252.9,1252.7,4.58698605]
[1672869830847,2.5,1252.8,1252.7,4.58077102]
[1672869831918,5.5073,1252.8,1252.7,4.58077102]
[1672869833070,3.0073,1252.8,1252.7,3.38440523]
[1672869833492,3.0073,1252.8,1252.7,5.7774116]
[1672869833909,3.0073,1252.8,1252.7,3.98000637]
[1672869834430,1.5,1253.0,1252.7,5.39482715]
[1672869834649,1.5,1253.0,1252.9,4.38789155]
[1672869834650,3.0073,1253.0,1252.9,4.38789155]
[1672869834965,3.0073,1253.0,1252.9,3.191]
[1672869835381,3.0073,1253.0,1252.9,5.691]
[1672869835587,3.0073,1253.2,1252.9,5.691]
[1672869835804,3.0073,1253.2,1253.1,2.78733451]
[1672869836012,5.5073,1253.2,1253.1,2.78733451]
[1672869836421,3.0073,1253.2,1253.1,1.591]
[1672869836633,3.0073,1253.2,1253.1,3.091]
[1672869840111,5.5073,1253.3,1253.1,3.091]
[1672869841578,2.5,1253.3,1253.1,3.091]
[1672869841788,5.5073,1253.3,1253.1,3.091]
[1672869842521,3.0073,1253.3,1253.1,3.091]
[1672869842735,3.0073,1253.3,1253.2,1.592]
[1672869842937,3.0073,1253.3,1253.2,3.181]
[1672869844516,3.0073,1253.5,1253.2,3.181]
[1672869844825,3.0073,1253.5,1253.3,4.097]
[1672869845457,3.0073,1253.5,1253.4,1.592]
[1672869846718,2.5,1253.6,1253.4,1.592]
[1672869847454,2.5,1253.6,1253.5,1.597]
[1672869847657,3.0073,1253.7,1253.5,1.597]
[1672869847981,2.5,1253.6,1253.5,1.597]
[1672869849876,4.5073,1253.7,1253.5,1.597]
[1672869853548,3.0073,1253.7,1253.6,1.592]
[1672869853755,3.0073,1253.7,1253.6,4.092]
[1672869853967,0.002,1253.8,1253.6,4.092]
[1672869854174,0.002,1253.8,1253.7,1.597]
[1672869859848,3.0093,1253.8,1253.7,1.597]
[1672869860795,3.0093,1253.8,1253.5,1.597]
[1672869861001,1.5,1253.7,1253.5,1.597]
[1672869861745,4.5073,1253.7,1253.5,1.597]
[1672869863961,1.5,1253.7,1253.5,1.597]
[1672869864167,4.5073,1253.7,1253.5,1.597]
[1672869866787,3.0073,1253.6,1253.5,1.597]
[1672869870477,4.5073,1253.7,1253.5,1.597]
[1672869874367,1.5,1253.7,1253.5,1.597]
[1672869874576,3.0073,1253.6,1253.5,1.597]
[1672869875097,3.0073,1253.6,1253.5,1.587]
[1672869875308,3.0073,1253.6,1253.5,4.087]
[1672869875727,3.0073,1253.6,1253.5,1.587]
[1672869879930,1.5,1253.7,1253.5,1.587]
[1672869880141,3.0073,1253.6,1253.5,1.587]
[1672869883195,1.5,1253.7,1253.5,1.587]
[1672869883403,3.0073,1253.6,1253.5,1.587]
[1672869884766,3.0073,1253.6,1253.5,2.78063791]
[1672869885183,3.0073,1253.6,1253.5,2.77963791]
[1672869890434,1.5,1253.7,1253.5,2.77963791]
[1672869890758,3.0073,1253.6,1253.5,2.77963791]
[1672869890963,3.0073,1253.6,1253.5,1.586]
[1672869892439,1.5,1253.7,1253.5,1.586]
[1672869892642,3.0073,1253.6,1253.5,1.586]
[1672869892853,1.5,1253.7,1253.5,1.586]
[1672869893064,3.0073,1253.6,1253.5,1.586]
[1672869894756,3.0073,1253.6,1253.5,2.77963791]
[1672869894957,3.0073,1253.6,1253.5,2.77473534]
[1672869895379,3.0073,1253.6,1253.5,1.58109743]
[1672869895596,3.0073,1253.6,1253.5,2.77473534]
[1672869896220,1.5,1253.7,1253.5,2.77473534]
[1672869896435,3.0073,1253.6,1253.5,2.77473534]
[1672869896647,1.5,1253.7,1253.5,2.77473534]
[1672869896850,3.0073,1253.6,1253.5,2.77473534]
[1672869897489,3.0073,1253.6,1253.5,1.58109743]
[1672869898227,3.0073,1253.6,1253.5,2.77473534]
[1672869898424,1.5,1253.7,1253.5,2.77473534]
[1672869898748,3.0073,1253.6,1253.5,2.77473534]
[1672869899795,1.5,1253.7,1253.5,2.77473534]
[1672869900005,3.0073,1253.6,1253.5,2.77473534]
[1672869902322,3.0073,1253.6,1253.5,5.27473534]
[1672869902737,3.0073,1253.6,1253.5,7.06541656]
[1672869903162,3.0073,1253.6,1253.5,8.66241656]
[1672869903703,3.0073,1253.6,1253.5,6.16241656]
[1672869904544,3.0073,1253.6,1253.5,4.37173534]
[1672869905070,3.0073,1253.6,1253.5,6.16241656]
[1672869907482,3.0073,1253.6,1253.5,4.37173534]
[1672869908323,3.0073,1253.6,1253.5,6.16241656]
[1672869908743,3.0073,1253.6,1253.5,4.37173534]
[1672869908956,3.0073,1253.6,1253.5,6.16241656]
[1672869910640,3.0073,1253.6,1253.5,4.37173534]
[1672869910944,1.5,1253.7,1253.5,4.37173534]
[1672869911152,3.0073,1253.6,1253.5,4.58131913]
[1672869911363,3.0073,1253.6,1253.5,4.38763791]
[1672869913265,3.0073,1253.6,1253.5,6.17831913]
[1672869915478,3.0073,1253.6,1253.5,8.67831913]
[1672869915899,3.0073,1253.6,1253.5,6.17831913]
[1672869916528,3.0073,1253.6,1253.5,4.98468122]
[1672869916738,3.0073,1253.6,1253.5,7.48468122]
[1672869916950,3.0073,1253.6,1253.5,8.67983923]
[1672869917156,3.0073,1253.6,1253.5,8.679859]
[1672869917580,3.0073,1253.6,1253.5,6.179859]
[1672869917988,3.0073,1253.6,1253.5,6.1800068]
[1672869918423,3.0073,1253.7,1253.5,8.6800068]
[1672869918737,3.0073,1253.7,1253.6,4.097]
[1672869919364,3.0073,1253.7,1253.6,1.597]
[1672869919893,3.0073,1253.7,1253.6,2.79232558]
[1672869920631,3.0073,1253.7,1253.6,1.597]
[1672869920945,6.29072891,1253.8,1253.6,2.79232558]
[1672869921151,3.0073,1253.7,1253.6,2.79232558]
[1672869921569,6.29072891,1253.8,1253.6,2.79232558]
[1672869921779,3.0073,1253.7,1253.6,2.79232558]
[1672869922095,3.0073,1253.7,1253.6,1.597]
[1672869931135,6.29072891,1253.8,1253.6,1.597]
[1672869931352,3.0073,1253.7,1253.6,1.597]
[1672869931982,3.00016109,1253.7,1253.6,4.097]
[1672869932191,3.00016109,1253.7,1253.6,1.597]
[1672869932612,6.29072891,1253.8,1253.6,1.597]
[1672869932823,3.0073,1253.7,1253.6,1.597]
[1672869934833,6.29072891,1253.8,1253.6,1.597]
[1672869935347,3.0073,1253.7,1253.6,1.597]
[1672869937564,3.0073,1253.7,1253.6,2.79232558]
[1672869937985,3.0073,1253.7,1253.6,1.597]
[1672869940086,3.0073,1253.7,1253.6,2.79232558]
[1672869940294,3.0073,1253.7,1253.6,1.597]
[1672869948606,6.29072891,1253.8,1253.6,1.597]
[1672869948921,3.0073,1253.7,1253.6,1.597]
[1672869949546,6.29072891,1253.8,1253.6,1.597]
[1672869949764,3.0073,1253.7,1253.6,1.597]
[1672869951548,6.29072891,1253.8,1253.6,1.597]
[1672869951857,3.0073,1253.7,1253.6,1.597]
[1672869954176,6.29072891,1253.8,1253.6,1.597]
[1672869954383,3.0073,1253.7,1253.6,1.597]
[1672869958590,6.29072891,1253.8,1253.6,1.597]
[1672869958796,3.0073,1253.7,1253.6,1.597]
[1672869961851,6.29072891,1253.8,1253.6,1.597]
[1672869962063,3.0073,1253.7,1253.6,1.597]
[1672869964781,6.29072891,1253.8,1253.6,1.597]
[1672869964999,3.0073,1253.7,1253.6,1.597]
[1672869965209,3.0073,1253.7,1253.5,4.5830068]
[1672869965419,3.0073,1253.7,1253.5,2.79232558]
[1672869965950,3.0073,1253.6,1253.5,2.79232558]
[1672869967424,3.0073,1253.6,1253.5,4.5830068]
[1672869967639,3.0073,1253.6,1253.5,2.79232558]
[1672869967839,3.0073,1253.6,1253.5,4.5830068]
[1672869968047,3.0073,1253.6,1253.5,2.79232558]
[1672869970054,3.0073,1253.6,1253.5,4.5830068]
[1672869970888,3.0073,1253.6,1253.5,2.79232558]
[1672869971318,3.0073,1253.6,1253.5,4.5830068]
[1672869972056,3.0073,1253.6,1253.5,2.79232558]
[1672869974995,4.78872891,1253.7,1253.5,2.79232558]
[1672869975197,3.0073,1253.6,1253.5,2.79232558]
[1672869982248,3.0073,1253.6,1253.5,4.5830068]
[1672869982457,3.0073,1253.6,1253.5,2.79232558]
[1672869984759,3.0073,1253.6,1253.5,4.5830068]
[1672869985502,3.0073,1253.6,1253.5,2.79232558]
[1672869985926,7.88772891,1253.8,1253.5,2.79232558]
[1672869986241,3.0073,1253.6,1253.5,2.79232558]
[1672869988442,3.0073,1253.6,1253.4,2.78832558]
[1672869988649,4.6043,1253.6,1253.3,4.5830068]
[1672869988864,3.0073,1253.4,1253.3,3.38768122]
[1672869994333,3.0073,1253.4,1253.3,4.58310601]
[1672869994543,3.0073,1253.4,1253.3,4.58311727]
[1672869995696,3.0073,1253.4,1253.3,4.58298339]
[1672869997060,3.0073,1253.4,1253.3,4.58296946]
[1672869997473,3.0073,1253.4,1253.3,4.58282804]
[1672869998534,2.5,1253.5,1253.3,4.58282804]
[1672869998737,3.0073,1253.4,1253.3,4.58282804]
[1672869999482,3.0073,1253.4,1253.3,3.38768122]
[1672870000005,3.0073,1253.4,1253.3,4.58277533]
[1672870001258,3.0073,1253.4,1253.3,2.79209411]
[1672870002419,3.0073,1253.4,1253.3,2.78888986]
[1672870002735,3.0073,1253.4,1253.3,4.57957108]
[1672870003047,3.0073,1253.4,1253.3,2.78888986]
[1672870005153,4.09,1253.5,1253.3,1.19509411]
[1672870005469,3.0073,1253.4,1253.3,1.19509411]
[1672870007256,4.09,1253.5,1253.3,1.19509411]
[1672870007465,3.0073,1253.4,1253.3,1.19509411]
[1672870008094,4.09,1253.5,1253.3,1.19509411]
[1672870008306,3.0073,1253.4,1253.3,1.19509411]
[1672870011044,4.09,1253.5,1253.3,1.19509411]
[1672870011258,3.0073,1253.4,1253.3,1.19509411]
[1672870011476,4.09,1253.5,1253.3,1.19509411]
[1672870011987,3.0073,1253.4,1253.3,1.19509411]
[1672870012407,4.09,1253.5,1253.3,1.19509411]
[1672870012619,3.0073,1253.4,1253.3,1.19509411]
[1672870012822,4.09,1253.5,1253.3,1.19509411]
[1672870013044,3.0073,1253.4,1253.3,1.19509411]
[1672870016404,4.097,1253.5,1253.3,1.19509411]
[1672870016620,3.0073,1253.4,1253.2,2.98577533]
[1672870017670,3.0073,1253.3,1253.2,2.98577533]
[1672870018404,3.0073,1253.3,1253.2,2.98572855]
[1672870018721,3.0073,1253.3,1253.2,1.79068122]
[1672870019563,4.097,1253.5,1253.2,1.79068122]
[1672870019773,3.0073,1253.3,1253.2,1.79068122]
[1672870021663,3.0073,1253.3,1253.2,2.98589724]
[1672870021874,4.097,1253.5,1253.2,2.98589724]
[1672870022086,3.0073,1253.3,1253.2,2.98589724]
[1672870025233,4.097,1253.5,1253.2,1.79068122]
[1672870025441,3.0073,1253.3,1253.2,1.79068122]
[1672870027235,3.0073,1253.3,1253.2,4.18368759]
[1672870027968,4.097,1253.5,1253.2,4.18368759]
[1672870028179,4.097,1253.5,1253.3,1.1960654]
[1672870028914,3.0073,1253.4,1253.3,1.1960654]
[1672870031121,4.097,1253.5,1253.3,1.1960654]
[1672870031339,3.0073,1253.4,1253.3,2.98674662]
[1672870031538,3.0073,1253.4,1253.3,1.1960654]
[1672870035636,4.097,1253.5,1253.3,1.1960654]
[1672870035954,3.0073,1253.4,1253.3,1.1960654]
[1672870038785,8.88572891,1253.5,1253.3,1.1960654]
[1672870039002,3.0073,1253.4,1253.3,1.1960654]
[1672870039739,3.0073,1253.4,1253.2,2.98674662]
[1672870040994,3.0073,1253.3,1253.2,2.98674662]
[1672870041728,8.88572891,1253.5,1253.2,2.98674662]
[1672870041938,3.0073,1253.3,1253.2,2.98674662]
[1672870043306,3.0073,1253.3,1253.2,1.79068122]
[1672870048357,1.589,1253.4,1253.2,1.79068122]
[1672870048557,3.0073,1253.3,1253.2,1.79068122]
[1672870049507,3.0073,1253.3,1253.2,4.18368759]
[1672870050039,1.589,1253.4,1253.2,4.18368759]
[1672870050254,3.0073,1253.3,1253.2,4.18368759]
[1672870051293,3.0073,1253.3,1253.2,1.79068122]
[1672870052877,1.589,1253.4,1253.2,1.79068122]
[1672870053088,1.589,1253.4,1253.3,1.19660633]
[1672870053295,4.5963,1253.4,1253.3,3.69660633]
[1672870053621,1.589,1253.4,1253.3,1.19660633]
[1672870053834,4.5963,1253.4,1253.3,1.19660633]
[1672870055931,4.5963,1253.4,1253.2,2.98728755]
[1672870056875,1.589,1253.4,1253.2,2.98728755]
[1672870057092,3.0073,1253.3,1253.2,2.98728755]
[1672870057828,1.589,1253.4,1253.2,2.98728755]
[1672870058034,3.0073,1253.3,1253.2,2.98728755]
[1672870058245,1.589,1253.4,1253.2,2.98728755]
[1672870058457,3.0073,1253.3,1253.2,2.98728755]
[1672870059717,1.589,1253.4,1253.2,2.98728755]
[1672870059929,3.0073,1253.3,1253.2,2.98728755]
[1672870060769,1.589,1253.4,1253.2,2.98728755]
[1672870060981,3.0073,1253.3,1253.2,2.98728755]
[1672870062658,1.589,1253.4,1253.2,2.98728755]
[1672870062969,3.0073,1253.3,1253.2,2.98728755]
[1672870063605,3.0073,1253.3,1253.2,1.79068122]
[1672870065594,3.0073,1253.3,1253.2,2.98728374]
[1672870066004,1.589,1253.4,1253.2,2.98728374]
[1672870066230,3.0073,1253.3,1253.2,2.98728374]
[1672870066441,1.589,1253.4,1253.2,2.98728374]
[1672870066759,3.0073,1253.3,1253.2,2.98728374]
[1672870067175,1.589,1253.4,1253.2,2.98728374]
[1672870067385,3.0073,1253.3,1253.2,2.98728374]
[1672870068123,3.0073,1253.3,1253.2,1.79068122]
[1672870068330,3.0073,1253.3,1253.2,2.98728682]
[1672870072849,1.589,1253.4,1253.2,2.98728682]
[1672870073160,3.0073,1253.3,1253.2,2.98728682]
[1672870073478,1.589,1253.4,1253.2,2.98728682]
[1672870074315,3.0073,1253.3,1253.2,2.98728682]
[1672870074732,3.0073,1253.3,1253.2,2.98358246]
[1672870074946,3.0073,1253.3,1253.2,1.78697686]
[1672870076314,1.589,1253.4,1253.2,1.78697686]
[1672870076525,1.589,1253.4,1253.3,1.19679688]
[1672870076737,4.5963,1253.4,1253.3,1.19679688]
[1672870076945,1.589,1253.4,1253.3,1.19679688]
[1672870077153,4.5963,1253.4,1253.3,1.19679688]
[1672870081981,1.589,1253.4,1253.3,1.19679688]
[1672870082193,4.5963,1253.4,1253.3,1.19679688]
[1672870088505,1.589,1253.4,1253.3,1.19679688]
[1672870088715,4.5963,1253.4,1253.3,1.19679688]
[1672870091029,1.589,1253.4,1253.3,1.19679688]
[1672870091239,4.5963,1253.4,1253.3,1.19679688]
[1672870092818,1.589,1253.4,1253.3,1.19679688]
[1672870093019,4.5963,1253.4,1253.3,1.19679688]
[1672870093334,1.589,1253.4,1253.3,1.19679688]
[1672870093547,4.5963,1253.4,1253.3,1.19679688]
[1672870093865,1.589,1253.4,1253.3,1.19679688]
[1672870094077,4.5963,1253.4,1253.3,1.19679688]
[1672870095022,1.589,1253.4,1253.3,1.19679688]
[1672870095230,3.0073,1253.4,1253.3,1.19679688]
[1672870095542,4.097,1253.5,1253.3,1.19679688]
[1672870095745,3.0073,1253.4,1253.3,1.19679688]
[1672870095956,4.097,1253.5,1253.3,1.19679688]
[1672870096169,3.0073,1253.4,1253.3,1.19679688]
[1672870098067,4.097,1253.5,1253.3,1.19679688]
[1672870098381,3.0073,1253.4,1253.3,1.19679688]
[1672870098591,4.097,1253.5,1253.3,1.19679688]
[1672870099012,3.0073,1253.4,1253.3,1.19679688]
[1672870099638,3.0073,1253.4,1253.2,2.79379688]
[1672870099857,3.0073,1253.4,1253.3,1.19679688]
[1672870102266,8.88572891,1253.5,1253.3,1.19679688]
[1672870102488,3.0073,1253.4,1253.3,1.19679688]
[1672870102693,3.0073,1253.4,1253.2,2.79379688]
[1672870103849,1.59,1253.3,1253.1,1.19679688]
[1672870104059,3.0073,1253.2,1253.1,1.19679688]
[1672870104264,3.0073,1253.2,1253.1,3.97900637]
[1672870107525,3.0073,1253.2,1253.1,1.586]
[1672870107942,3.0073,1253.2,1253.1,2.78059459]
[1672870108577,2.5,1253.3,1253.1,2.78059459]
[1672870108789,3.0073,1253.2,1253.1,2.78059459]
[1672870110056,2.5,1253.3,1253.1,2.78059459]
[1672870110263,3.0073,1253.2,1253.1,2.78059459]
[1672870111209,2.5,1253.3,1253.1,2.78059459]
[1672870111417,3.0073,1253.2,1253.1,2.78059459]
[1672870113419,2.5,1253.3,1253.1,2.78059459]
[1672870113637,3.0073,1253.2,1253.1,2.78059459]
[1672870114052,3.0073,1253.2,1253.1,1.586]
[1672870114263,3.0073,1253.2,1253.1,2.78021787]
[1672870114794,2.5,1253.3,1253.1,2.78021787]
[1672870115208,3.0073,1253.2,1253.1,1.586]
[1672870115531,3.0073,1253.2,1253.1,2.78618736]
[1672870116269,3.0073,1253.2,1253.1,1.592]
[1672870116578,3.0073,1253.2,1253.1,2.7861438]
[1672870117420,2.5,1253.3,1253.1,2.7861438]
[1672870117633,3.0073,1253.2,1253.1,2.7861438]
[1672870118154,3.0073,1253.2,1253.1,2.78611219]
[1672870119837,3.0073,1253.2,1253.1,1.592]
[1672870121200,2.5,1253.3,1253.1,1.592]
[1672870121410,2.5,1253.3,1253.2,1.19390954]
[1672870121937,5.5073,1253.3,1253.2,1.19390954]
[1672870123825,2.49545937,1253.3,1253.2,1.19390954]
[1672870124036,5.50275937,1253.3,1253.2,1.19390954]
[1672870124878,2.49545937,1253.3,1253.2,1.19390954]
[1672870125295,5.50275937,1253.3,1253.2,1.19390954]
[1672870125728,2.49545937,1253.3,1253.2,1.19390954]
[1672870125935,5.50275937,1253.3,1253.2,1.19390954]
[1672870126670,2.49545937,1253.3,1253.2,1.19390954]
[1672870126877,5.50275937,1253.3,1253.2,1.19390954]
[1672870127828,2.49545937,1253.3,1253.2,1.19390954]
[1672870128031,5.50275937,1253.3,1253.2,1.19390954]
[1672870130982,2.49545937,1253.3,1253.2,1.19390954]
[1672870131184,5.50275937,1253.3,1253.2,1.19390954]
[1672870131397,2.49545937,1253.3,1253.2,1.19390954]
[1672870131614,5.50275937,1253.3,1253.2,1.19390954]
[1672870133507,2.49545937,1253.3,1253.2,1.19390954]
[1672870133925,5.50275937,1253.3,1253.2,1.19390954]
[1672870134971,2.49545937,1253.3,1253.2,1.19390954]
[1672870135196,5.50275937,1253.3,1253.2,1.19390954]
[1672870135714,2.49545937,1253.3,1253.2,1.19390954]
[1672870135914,5.50275937,1253.3,1253.2,1.19390954]
[1672870136551,2.49545937,1253.3,1253.2,1.19390954]
[1672870136876,5.50275937,1253.3,1253.2,1.19390954]
[1672870137505,2.49545937,1253.3,1253.2,1.19390954]
[1672870137718,5.50275937,1253.3,1253.2,1.19390954]
[1672870137932,2.49545937,1253.3,1253.2,1.19390954]
[1672870138451,5.50275937,1253.3,1253.2,1.19390954]
[1672870138658,2.49545937,1253.3,1253.2,1.19390954]
[1672870139076,5.50275937,1253.3,1253.2,1.19390954]
[1672870139288,5.50275937,1253.3,1253.2,2.98618445]
[1672870139613,2.49545937,1253.3,1253.2,2.98618445]
[1672870139923,5.50275937,1253.3,1253.2,2.98618445]
[1672870140761,3.0073,1253.3,1253.2,2.98618445]
[1672870142972,3.0073,1253.3,1253.2,1.19390954]
[1672870144232,1.597,1253.4,1253.2,1.19390954]
[1672870144446,3.0073,1253.3,1253.2,1.19390954]
[1672870144758,1.597,1253.4,1253.2,1.19390954]
[1672870144969,3.0073,1253.3,1253.2,1.19390954]
[1672870145817,5.5073,1253.3,1253.2,1.19390954]
[1672870147604,5.5073,1253.3,1253.1,4.58318445]
[1672870147912,1.587,1253.2,1253.1,1.19390954]
[1672870148129,1.587,1253.2,1253.0,2.98618445]
[1672870148336,3.0073,1253.1,1253.0,1.19390954]
[1672870148541,4.5073,1253.1,1253.0,1.19390954]
[1672870152853,1.5,1253.1,1253.0,1.19390954]
[1672870153059,4.5073,1253.1,1253.0,1.19390954]
[1672870154004,4.5073,1253.1,1252.9,2.98618445]
[1672870156215,4.5073,1253.1,1252.9,1.19390954]
[1672870156629,4.5073,1253.1,1252.8,4.58318445]
[1672870156839,3.0073,1252.9,1252.8,4.58318445]
[1672870157683,3.0073,1252.9,1252.8,2.98618445]
[1672870157894,3.0073,1252.9,1252.7,16.94418445]
[1672870158096,3.0073,1252.9,1252.7,1.19390954]
[1672870158097,4.6043,1252.9,1252.7,1.19390954]
[1672870159780,1.597,1252.8,1252.7,1.19390954]
[1672870160203,4.097,1252.8,1252.7,1.19390954]
[1672870162110,7.1043,1252.8,1252.6,2.98618445]
[1672870162319,7.1043,1252.8,1252.7,1.19390954]
[1672870163688,7.1043,1252.8,1252.6,2.98618445]
[1672870164631,3.0073,1252.8,1252.7,1.19390954]
[1672870164947,3.0073,1252.8,1252.7,4.57818445]
[1672870165262,3.0073,1252.8,1252.7,7.07818445]
[1672870166205,3.0073,1252.8,1252.7,5.88427491]
[1672870168720,3.0073,1252.9,1252.7,5.88427491]
[1672870168928,3.0073,1252.9,1252.8,1.1925148]
[1672870169138,3.0073,1252.9,1252.8,2.6925148]
[1672870170713,3.0073,1252.9,1252.8,1.1925148]
[1672870171450,4.097,1253.0,1252.8,1.1925148]
[1672870171765,3.0073,1252.9,1252.8,1.1925148]
[1672870172605,3.0073,1252.9,1252.8,2.6925148]
[1672870172921,3.0073,1252.9,1252.8,1.1925148]
[1672870173333,3.0073,1252.9,1252.8,2.6925148]
[1672870173547,3.0073,1252.9,1252.8,1.1925148]
[1672870173859,3.0073,1252.9,1252.8,2.6925148]
[1672870174286,3.0073,1252.9,1252.8,6.07178971]
[1672870175865,5.5073,1253.0,1252.8,6.07178971]
[1672870176075,3.0073,1253.0,1252.8,6.07178971]
[1672870176285,3.0073,1253.0,1252.9,1.1925148]
[1672870176496,3.0073,1253.0,1252.8,6.07178971]
[1672870177019,3.0073,1253.0,1252.9,1.1925148]
[1672870177444,3.083,1253.1,1252.9,1.1925148]
[1672870177647,3.0073,1253.0,1252.9,1.1925148]
[1672870181538,3.0073,1253.0,1252.8,12.55078971]
[1672870182484,3.0073,1252.9,1252.8,4.57178971]
[1672870182686,3.0073,1252.9,1252.8,3.37927491]
[1672870184474,3.0073,1252.9,1252.8,5.77228128]
[1672870185009,3.0073,1253.0,1252.8,5.77228128]
[1672870185212,3.0073,1253.0,1252.9,1.19456734]
[1672870185426,3.0073,1253.0,1252.9,2.69456734]
[1672870185637,3.0073,1253.0,1252.9,1.19456734]
[1672870186895,3.083,1253.1,1252.9,1.19456734]
[1672870187112,3.0073,1253.0,1252.9,1.19456734]
[1672870189625,3.0073,1253.0,1252.9,2.98684225]
[1672870190264,3.0073,1253.0,1252.9,1.19456734]
[1672870190476,3.083,1253.1,1252.9,1.19456734]
[1672870190887,3.0073,1253.0,1252.9,1.19456734]
[1672870191421,3.0073,1253.0,1252.9,1.18849108]
[1672870192044,3.0073,1253.0,1252.9,2.98076599]
[1672870192989,3.083,1253.1,1252.9,2.98076599]
[1672870193191,3.0073,1253.0,1252.9,2.98076599]
[1672870193830,3.083,1253.1,1252.9,2.98076599]
[1672870194247,3.0073,1253.0,1252.9,2.98076599]
[1672870194875,3.083,1253.1,1252.9,2.98076599]
[1672870195095,3.0073,1253.0,1252.9,2.98076599]
[1672870195614,3.097,1253.1,1252.9,2.98076599]
[1672870195824,3.0073,1253.0,1252.9,2.98076599]
[1672870197411,3.0073,1253.0,1252.9,1.79227491]
[1672870199299,3.097,1253.1,1252.9,1.79227491]
[1672870199504,3.0073,1253.0,1252.9,1.79227491]
[1672870200656,3.097,1253.1,1252.9,3.29227491]
[1672870200871,3.0073,1253.0,1252.9,3.29227491]
[1672870201078,3.0073,1253.0,1252.9,1.79227491]
[1672870203609,3.097,1253.1,1252.9,1.79227491]
[1672870203823,3.0073,1253.0,1252.9,1.79227491]
[1672870204134,3.0073,1253.0,1252.9,4.18528128]
[1672870205807,3.097,1253.1,1252.9,4.18528128]
[1672870206020,3.0073,1253.0,1252.9,4.18528128]
[1672870206761,3.097,1253.1,1252.9,4.18528128]
[1672870207078,3.0073,1253.0,1252.9,4.18528128]
[1672870207609,3.00132336,1253.0,1252.9,5.68528128]
[1672870207824,3.00132336,1253.0,1252.9,4.18528128]
[1672870211706,3.0073,1253.0,1252.9,4.18528128]
[1672870212861,3.097,1253.1,1252.9,4.18528128]
[1672870213068,3.0073,1253.0,1252.9,4.18528128]
[1672870213592,3.097,1253.1,1252.9,4.18528128]
[1672870213809,3.0073,1253.0,1252.9,4.18528128]
[1672870214007,3.097,1253.1,1252.9,4.18528128]
[1672870214223,3.0073,1253.0,1252.9,4.18528128]
[1672870215070,3.097,1253.1,1252.9,4.18528128]
[1672870215381,3.0073,1253.0,1252.9,4.18528128]
[1672870215594,3.097,1253.1,1252.9,4.18528128]
[1672870215909,3.0073,1253.0,1252.9,4.18528128]
[1672870216119,3.097,1253.1,1252.9,4.18528128]
[1672870216431,3.0073,1253.0,1252.9,4.18528128]
[1672870218008,3.0073,1253.0,1252.9,3.8076268]
[1672870218749,3.0073,1253.0,1252.9,2.39300637]
[1672870219799,3.097,1253.1,1252.9,2.39300637]
[1672870220012,3.097,1253.1,1253.0,1.79476065]
[1672870220220,6.1043,1253.1,1253.0,1.79476065]
[1672870220737,6.1043,1253.1,1252.9,4.18776702]
[1672870221688,3.0073,1253.0,1252.9,4.18776702]
[1672870222634,3.0073,1253.0,1252.9,2.39300637]
[1672870223475,3.0073,1253.0,1252.9,4.18799317]
[1672870225574,3.0073,1253.0,1252.9,2.39300637]
[1672870225784,3.0073,1253.0,1252.9,3.80762028]
[1672870227566,3.0073,1253.0,1252.9,2.39300637]
[1672870228198,3.0073,1253.0,1252.9,3.80762632]
[1672870228515,3.0073,1253.0,1252.9,2.39300637]
[1672870228726,3.097,1253.1,1252.9,2.39300637]
[1672870228932,3.097,1253.1,1253.0,1.79491962]
[1672870229252,6.1043,1253.1,1253.0,4.29491962]
[1672870229461,6.1043,1253.1,1253.0,1.79491962]
[1672870229877,3.097,1253.1,1253.0,1.79491962]
[1672870230409,6.1043,1253.1,1253.0,1.79491962]